[Event "44th Chess Olympiad Open 2022"]
[Site "Chennai"]
[Date "2022.08.09"]
[Round "11.66"]
[White "Drayton, Anthony"]
[Black "Guillaume, Jude Mirvens"]
[Result "1-0"]
[ECO "D02"]
[WhiteElo "1928"]
[BlackElo "2022"]
[Annotator "NA RC"]
[PlyCount "123"]
[EventDate "2022.07.29"]
[EventType "team-tourn"]
[EventCountry "IND"]
[SourceTitle "playchess.com"]
[Source "ChessBase"]
[SourceQuality "1"]
[WhiteTeam "Guyana"]
[BlackTeam "Haiti"]
[WhiteTeamCountry "GUY"]
[BlackTeamCountry "HAI"]
[TimeControl "40/5400+30:1800+30"]

1. d4 {[%emt 0:01:34]} d5 {[%emt 0:00:17]} 2. Bf4 {[%emt 0:00:28]} Nf6 {[%emt 0:00:22]} 3. e3 {[%emt 0:00:12]} e6 {[%emt 0:00:17]} 4. Nf3 {[%emt 0:00:09]} Nbd7 {[%emt 0:00:56]} 5. Nbd2 {[%emt 0:01:06]} c5 {[%emt 0:01:10]} 6. c3 {[%emt 0:00:16]} Qb6 {[%emt 0:00:26]} 7. Qc2 {[%emt 0:04:58]} Nh5 {[%emt 0:05:21]} 8. Bg5 {[%emt 0:00:21]} h6 {[%emt 0:00:46]} 9. Bh4 {[%emt 0:00:10]} Bd6 {[%emt 0:00:33]} 10. Be2 {[%emt 0:00:48]} Nhf6 {[%emt 0:01:03]} 11. Rc1 {[%emt 0:04:40]} O-O {[%emt 0:00:38]} 12. O-O {[%emt 0:02:11]} Qc7 {[%emt 0:00:52]} 13. e4 {[%emt 0:00:30]} dxe4 {[%emt 0:01:23]} 14. Nxe4 {[%emt 0:00:16]} Be7 {[%emt 0:02:10]} 15. Bg3 {[%emt 0:06:22]} Qa5 {[%emt 0:02:51]} 16. Nxf6+ {[%emt 0:03:04]} Nxf6 {[%emt 0:00:42]} 17. dxc5 {[%emt 0:01:55]} Qxc5 {[%emt 0:01:01]} 18. Rcd1 {[%emt 0:03:15]} b5 {[%emt 0:00:39]} 19. Nd4 {[%emt 0:04:01]} Bd7 {[%emt 0:07:01]} 20. Rfe1 {[%emt 0:05:36]} Rac8 {[%emt 0:03:18]} 21. h3 {[%emt 0:05:18]} b4 {[%emt 0:04:26]} 22. c4 {[%emt 0:00:27]} a5 {[%emt 0:05:02]} 23. Bf1 {[%emt 0:02:27]} Bc6 {[%emt 0:01:42]} 24. Nxc6 {[%emt 0:00:24]} Qxc6 {[%emt 0:00:03]} 25. b3 {[%emt 0:02:41]} Rfd8 {[%emt 0:00:35]} 26. Rxd8+ {[%emt 0:01:09]} Rxd8 {[%emt 0:00:08]} 27. Rd1 {[%emt 0:00:08]} Rxd1 {[%emt 0:04:13]} 28. Qxd1 {[%emt 0:00:08]} Qc5 {[%emt 0:08:37]} 29. Bf4 {[%emt 0:04:54]} Ne4 {[%emt 0:04:31]} 30. Be3 {[%emt 0:01:01]} Qc7 {[%emt 0:02:02]} 31. Qg4 {[%emt 0:01:07]} Nf6 {[%emt 0:00:44]} 32. Qf3 {[%emt 0:00:16]} Qe5 {[%emt 0:01:07]} 33. Qa8+ {[%emt 0:00:33]} Kh7 {[%emt 0:00:31]} 34. g3 {[%emt 0:02:59]} Bc5 {[%emt 0:03:21]} 35. Qxa5 {[%emt 0:03:59]} Nd7 {[%emt 0:08:45]} 36. Bxc5 {[%emt 0:00:14]} Qxc5 {[%emt 0:00:17]} 37. Qxc5 {[%emt 0:00:04]} Nxc5 {[%emt 0:00:01]} 38. f3 {[%emt 0:01:15]} Kg6 {[%emt 0:00:26]} 39. Kf2 {[%emt 0:00:06]} Kf5 {[%emt 0:00:07]} 40. Ke3 {[%emt 0:00:09]} Ke5 {[%emt 0:00:05]} 41. f4+ {[%emt 0:30:22]} Kd6 {[%emt 0:31:15]} 42. Bd3 {[%emt 0:01:30]} f6 {[%emt 0:01:21]} 43. Bg6 {[%emt 0:00:39]} Ke7 {[%emt 0:09:24]} 44. h4 {[%emt 0:01:17]} Kd6 {[%emt 0:00:13]} 45. Kd2 {[%emt 0:01:35]} Kc6 {[%emt 0:05:02]} 46. Kc2 {[%emt 0:00:17]} Kd6 {[%emt 0:00:26]} 47. Kb2 {[%emt 0:02:13]} f5 {[%emt 0:00:00]} 48. a3 {[%emt 0:01:49]} bxa3+ {[%emt 0:05:59]} 49. Kxa3 {[%emt 0:00:08]} Ne4 {[%emt 0:00:24]} 50. g4 {[%emt 0:00:17]} Ng3 {[%emt 0:05:24]} 51. gxf5 {[%emt 0:00:06]} exf5 {[%emt 0:00:01]} 52. b4 {[%emt 0:00:16]} Ne2 {[%emt 0:00:14]} 53. Bxf5 {[%emt 0:00:14]} Nxf4 {[%emt 0:00:18]} 54. c5+ {[%emt 0:00:47]} Kc7 {[%emt 0:00:01]} 55. b5 {[%emt 0:00:16]} g5 {[%emt 0:02:15]} 56. hxg5 {[%emt 0:00:06]} hxg5 {[%emt 0:00:03]} 57. Ka4 {[%emt 0:00:16]} Nd5 {[%emt 0:00:06]} 58. Ka5 {[%emt 0:00:25]} Ne7 {[%emt 0:00:22]} 59. Be4 {[%emt 0:00:24]} Nc8 {[%emt 0:02:04]} 60. Bf3 {[%emt 0:00:20]} Ne7 {[%emt 0:01:21]} 61. Ka6 {[%emt 0:02:43]} Kb8 {[%emt 0:00:48]} 62. b6 {[%emt 0:00:24]} 1-0

[Event "44th Chess Olympiad Open 2022"]
[Site "Chennai"]
[Date "2022.08.09"]
[Round "11.66"]
[White "Lee, Ethan"]
[Black "Gabriel, Davidson"]
[Result "0-1"]
[ECO "D02"]
[WhiteElo "1629"]
[BlackElo "1915"]
[Annotator "TA"]
[PlyCount "52"]
[EventDate "2022.07.29"]
[EventType "team-tourn"]
[EventCountry "IND"]
[SourceTitle "playchess.com"]
[Source "ChessBase"]
[SourceQuality "1"]
[WhiteTeam "SGP"]
[BlackTeam "Haiti"]
[BlackTeamCountry "HAI"]
[TimeControl "40/5400+30:1800+30"]

{[%evp 10,52,25,35,33,22,27,0,18,0,0,0,4,0,0,-24,35,-16,-4,-66,-65,-70,-59,-125,-76,-106,-103,-112,-113,-98,-82,-75,-71,-76,-16,-40,-12,-13,-3,-309,-288,-529,-518,-504,-511]} 1. d4 {[%emt 0:00:03]} Nf6 {[%emt 0:03:16]} 2. Bf4 {[%emt 0:00:02]} d5 {[%emt 0:01:09]} 3. e3 {[%emt 0:00:31]} e6 {[%emt 0:01:01]} 4. Nf3 {[%emt 0:00:15]} Bd6 {[%emt 0:00:43]} 5. Bg3 {[%emt 0:00:08]} Ne4 {[%emt 0:00:47]} 6. Bd3 {[%emt 0:00:44]} Nxg3 {[%emt 0:01:34] D02: 1 d4 d5 2 Nf3 sidelines, including 2...Nf6 3 g3 and 2...Nf6 3 Bf4.} 7. hxg3 {[%emt 0:00:09]} h6 {[%emt 0:00:13]} 8. Nbd2 {[%emt 0:01:11]} c5 {[%emt 0:00:14] The position is equal.} 9. c3 {[%emt 0:00:50]} Qb6 {[%emt 0:01:26] [#]} 10. Rb1 $146 {[%emt 0:00:51]} ({Predecessor:} 10. Qe2 Qxb2 11. O-O c4 12. Bg6 fxg6 13. e4 O-O 14. Rfe1 Nc6 15. e5 Ba3 16. Nh4 {0-1 (23) Perez Salazar,J (1491)-Ialovoi,T (1829) Managua 2020}) 10... Bd7 {[%emt 0:01:40]} 11. e4 {[%emt 0:01:19]} cxd4 {[%emt 0:02:54]} 12. Nxd4 {[%emt 0:00:19]} dxe4 {[%emt 0:04:30]} (12... Nc6 $11) 13. Nxe4 {[%emt 0:01:07]} (13. Nc4 $14 Qc7 {[#]} 14. Bxe4 $1 (14. Nb5 Bxb5 15. Nxd6+ Qxd6 $15)) 13... Be7 $11 {[%emt 0:00:32]} 14. g4 {[%emt 0:04:53]} ({Better is} 14. Qg4 $11 Kf8 15. Qe2) 14... Nc6 $15 {[%emt 0:00:29]} 15. Nf3 {[%emt 0:00:40]} O-O-O {[%emt 0:04:01]} 16. Bc2 {[%emt 0:15:22]} (16. b4 $15) 16... f5 {[%emt 0:04:13]} (16... Kb8 $142 {Threatens to win with ...f5.} 17. O-O h5 18. gxh5 Rxh5) 17. gxf5 {[%emt 0:06:18]} exf5 {[%emt 0:00:04] [#] Strongly threatening ...Rhe8.} 18. Nd6+ {[%emt 0:00:51]} Bxd6 {[%emt 0:00:30]} 19. Qxd6 {[%emt 0:00:14]} Rhe8+ {[%emt 0:00:14]} 20. Kf1 {[%emt 0:00:53]} Be6 $36 {[%emt 0:04:40][%cal Bd7e6,Be6b3,Bb3c2][%mdl 2080] Black is in control.} 21. Qg3 {[%emt 0:02:03]} Re7 {[%emt 0:08:30] Black is more active.} ({Don't take} 21... Bxa2 22. Bxf5+ Be6 23. Bxe6+ Rxe6 24. Qg4 $14) (21... Rh8 $17 22. Nd4 f4 23. Qxf4 Rhf8) 22. Rh5 {[%emt 0:06:11]} Qa6+ {[%emt 0:04:58]} ({Don't play} 22... Bxa2 23. Bxf5+ Be6 24. Bxe6+ Rxe6 25. Qg4 $11) (22... Rf8 $5 {[%cal Rf5f4]}) 23. Kg1 {[%emt 0:00:30]} Qxa2 {[%emt 0:00:08]} 24. Rxf5 $2 {[%emt 0:09:59][%mdl 8192]} (24. Ne5 $11) 24... Bb3 $19 {[%emt 0:00:48]} 25. Qg4 $2 {[%emt 0:12:31]} (25. Re1 {only move.} Rxe1+ 26. Nxe1 Bxc2 27. Nxc2 Qb1+ 28. Kh2 Qxc2 29. Rf7) 25... Bxc2 {[%emt 0:00:21]} 26. Rf7+ {[%emt 0:01:29]} Red7 {[%emt 0:01:03] Weighted Error Value: White=0.62/Black=0.16 (very precise)} 0-1

[Event "44th Chess Olympiad Open 2022"]
[Site "Chennai"]
[Date "2022.08.09"]
[Round "11.67"]
[White "Abdirahman Omar Sheikh"]
[Black "Gajadin, Dewperkash"]
[Result "0-1"]
[ECO "C42"]
[WhiteElo "2051"]
[BlackElo "1990"]
[Annotator "RC"]
[PlyCount "160"]
[EventDate "2022.07.29"]
[EventType "team-tourn"]
[EventCountry "IND"]
[SourceTitle "playchess.com"]
[Source "ChessBase"]
[SourceQuality "1"]
[WhiteTeam "Somalia"]
[BlackTeam "Surinam"]
[WhiteTeamCountry "SOM"]
[BlackTeamCountry "SUR"]
[TimeControl "40/5400+30:1800+30"]

1. e4 {[%emt 0:00:08]} e5 {[%emt 0:00:15]} 2. Nf3 {[%emt 0:00:34]} Nf6 {[%emt 0:00:45]} 3. Nxe5 {[%emt 0:01:31]} d6 {[%emt 0:00:27]} 4. Nf3 {[%emt 0:00:05]} Nxe4 {[%emt 0:00:12]} 5. d4 {[%emt 0:00:18]} d5 {[%emt 0:00:13]} 6. Bd3 {[%emt 0:00:45]} Be7 {[%emt 0:00:20]} 7. O-O {[%emt 0:02:54]} Nc6 {[%emt 0:06:45]} 8. c4 {[%emt 0:02:03]} Nb4 {[%emt 0:06:00]} 9. cxd5 {[%emt 0:03:29]} Nxd3 {[%emt 0:00:54]} 10. Qxd3 {[%emt 0:00:09]} Qxd5 {[%emt 0:00:17]} 11. Re1 {[%emt 0:01:33]} Bf5 {[%emt 0:19:23]} 12. Nc3 {[%emt 0:01:27]} Nxc3 {[%emt 0:00:17]} 13. Qxc3 {[%emt 0:00:09]} Be6 {[%emt 0:02:12]} 14. Qxc7 {[%emt 0:04:21]} Bd6 {[%emt 0:01:31]} 15. Rxe6+ {[%emt 0:06:42]} Qxe6 {[%emt 0:01:52]} 16. Qxb7 {[%emt 0:02:13]} O-O {[%emt 0:00:41]} 17. d5 {[%emt 0:01:50]} Qe4 {[%emt 0:06:12]} 18. Be3 {[%emt 0:00:48]} Rfb8 {[%emt 0:03:14]} 19. Qc6 {[%emt 0:01:10]} Rd8 {[%emt 0:00:36]} 20. Rd1 {[%emt 0:04:33]} h6 {[%emt 0:04:25]} 21. h4 {[%emt 0:01:43]} Qb4 {[%emt 0:12:49]} 22. Bd4 {[%emt 0:08:07]} Rac8 {[%emt 0:05:00]} 23. Qa6 {[%emt 0:00:51]} Rc7 {[%emt 0:03:10]} 24. Bc3 {[%emt 0:02:15]} Qc4 {[%emt 0:05:04]} 25. Qa5 {[%emt 0:07:29]} Rcd7 {[%emt 0:01:59]} 26. b3 {[%emt 0:06:47]} Qf4 {[%emt 0:01:31]} 27. Qb5 {[%emt 0:13:51]} Bb8 {[%emt 0:08:15]} 28. Ba5 {[%emt 0:05:46]} Bc7 {[%emt 0:01:15]} 29. Bb4 {[%emt 0:04:23]} Qf5 {[%emt 0:02:01]} 30. Qc4 {[%emt 0:03:32]} Bf4 {[%emt 0:01:43]} 31. d6 {[%emt 0:04:46]} Bxd6 {[%emt 0:01:59]} 32. Bxd6 {[%emt 0:02:10]} Rxd6 {[%emt 0:00:19]} 33. Rxd6 {[%emt 0:00:29]} Rxd6 {[%emt 0:00:13]} 34. a4 {[%emt 0:00:21]} Rd1+ {[%emt 0:00:50]} 35. Kh2 {[%emt 0:00:41]} Qd5 {[%emt 0:02:21]} 36. Qc3 {[%emt 0:04:35]} Qd6+ {[%emt 0:01:18]} 37. g3 {[%emt 0:01:12]} Qd5 {[%emt 0:00:48]} 38. Ng1 {[%emt 0:01:48]} Rd3 {[%emt 0:01:06]} 39. Qc8+ {[%emt 0:00:29]} Kh7 {[%emt 0:00:05]} 40. b4 {[%emt 0:01:10]} Rd2 {[%emt 0:00:48]} 41. Nh3 {[%emt 0:30:46]} Rd1 {[%emt 0:30:53]} 42. Ng1 {[%emt 0:00:00]} Qe4 {[%emt 0:00:00]} 43. Qc5 {[%emt 0:00:00]} a6 {[%emt 0:00:00]} 44. b5 {[%emt 0:00:00]} axb5 {[%emt 0:00:00]} 45. axb5 {[%emt 0:00:00]} Qb1 {[%emt 0:00:00]} 46. Ne2 {[%emt 0:00:00]} Qe4 {[%emt 0:00:00]} 47. Ng1 {[%emt 0:00:00]} Ra1 {[%emt 0:00:00]} 48. b6 {[%emt 0:00:00]} Qb1 {[%emt 0:00:00]} 49. f3 {[%emt 0:00:00]} Ra2+ {[%emt 0:00:00]} 50. Kh3 {[%emt 0:00:00]} Qf1+ {[%emt 0:00:00]} 51. Kg4 {[%emt 0:00:00]} Ra4+ {[%emt 0:00:00]} 52. f4 {[%emt 0:00:00]} Qd1+ {[%emt 0:00:00]} 53. Kh3 {[%emt 0:02:16]} Qd7+ {[%emt 0:00:00]} 54. f5 {[%emt 0:00:00]} Qb7 {[%emt 0:00:00]} 55. Qf2 {[%emt 0:01:34]} Qh1+ {[%emt 0:00:00]} 56. Qh2 {[%emt 0:00:06]} Qe4 {[%emt 0:00:00]} 57. Qf2 {[%emt 0:02:19]} Rb4 {[%emt 0:00:00]} 58. Qf3 {[%emt 0:01:13]} Qb1 {[%emt 0:03:26]} 59. Ne2 {[%emt 0:00:40]} Rxb6 {[%emt 0:00:46]} 60. Nd4 {[%emt 0:00:53]} Rd6 {[%emt 0:01:11]} 61. Ne2 {[%emt 0:00:40]} Rf6 {[%emt 0:01:52]} 62. g4 {[%emt 0:00:33]} Rd6 {[%emt 0:00:36]} 63. Ng3 {[%emt 0:01:05]} Rd3 {[%emt 0:00:37]} 64. Qg2 {[%emt 0:00:17]} Qb5 {[%emt 0:01:06]} 65. h5 {[%emt 0:00:40]} Qe5 {[%emt 0:00:23]} 66. Qf2 {[%emt 0:00:31]} Qa1 {[%emt 0:00:57]} 67. Kh4 {[%emt 0:00:33]} Qf6+ {[%emt 0:00:21]} 68. Kh3 {[%emt 0:00:11]} Qg5 {[%emt 0:00:38]} 69. Qe2 {[%emt 0:00:34]} Ra3 {[%emt 0:00:43]} 70. Qe4 {[%emt 0:00:13]} Re3 {[%emt 0:01:14]} 71. Qb1 {[%emt 0:01:11]} Qf6 {[%emt 0:00:48]} 72. Qc2 {[%emt 0:00:15]} Rc3 {[%emt 0:00:19]} 73. Qe4 {[%emt 0:00:08]} Rb3 {[%emt 0:00:45]} 74. Kg2 {[%emt 0:00:28]} Ra3 {[%emt 0:00:39]} 75. Kh3 {[%emt 0:00:16]} Rc3 {[%emt 0:00:31]} 76. Kg2 {[%emt 0:00:13]} Rc7 {[%emt 0:00:27]} 77. Kh3 {[%emt 0:01:36]} Re7 {[%emt 0:00:31]} 78. Qd3 {[%emt 0:00:01]} Rc7 {[%emt 0:00:30]} 79. Ne4 {[%emt 0:00:32]} Qe5 {[%emt 0:00:23]} 80. Ng3 {[%emt 0:00:57]} Rc3 {[%emt 0:00:14]} 0-1

[Event "44th Chess Olympiad Open 2022"]
[Site "Chennai"]
[Date "2022.08.09"]
[Round "11.67"]
[White "Giasi, Viresh"]
[Black "Islam Sh.Nour, Kassim"]
[Result "1-0"]
[ECO "B00"]
[WhiteElo "2006"]
[BlackElo "1873"]
[Annotator "TA"]
[PlyCount "120"]
[EventDate "2022.07.29"]
[EventType "team-tourn"]
[EventCountry "IND"]
[SourceTitle "playchess.com"]
[Source "ChessBase"]
[SourceQuality "1"]
[WhiteTeam "Surinam"]
[BlackTeam "Somalia"]
[WhiteTeamCountry "SUR"]
[BlackTeamCountry "SOM"]
[TimeControl "40/5400+30:1800+30"]

{[%evp 12,120,47,38,71,40,47,33,35,35,60,48,60,53,58,53,82,72,101,65,72,68,50,31,63,65,92,99,82,65,78,70,72,77,80,86,90,82,122,106,128,95,147,147,237,231,228,224,258,235,360,361,343,325,336,335,334,313,398,375,467,472,604,613,616,621,648,495,492,473,466,463,568,568,570,536,826,820,895,689,910,903,941,941,918,877,866,810,1433,1293,29989,29983,29983,29984,29984,29985,29985,29986,29986,5631,29987,29988,7610,6149,29989,29990,29990,29991,29991,29991,29991]} 1. e4 {[%emt 0:00:03]} b6 {[%emt 0:06:15]} 2. d4 {[%emt 0:01:48]} Bb7 {[%emt 0:00:04]} 3. Nd2 {[%emt 0:00:29]} e6 {[%emt 0:00:23]} 4. Ngf3 {[%emt 0:01:54]} Nf6 {[%emt 0:01:37]} 5. Bd3 {[%emt 0:01:37]} c5 {[%emt 0:00:14]} 6. c3 {[%emt 0:00:45]} Nc6 {[%emt 0:00:24]} 7. O-O {[%emt 0:00:29]} Be7 {[%emt 0:00:23] B00: Queen's Fianchetto Defence, Nimzowitsch Defence.} 8. a3 {[%emt 0:00:53]} d5 {[%emt 0:00:58]} 9. e5 {[%emt 0:00:41]} Nd7 {[%emt 0:00:18] White is slightly better.} 10. Re1 {[%emt 0:01:11]} Qc7 {[%emt 0:01:53]} 11. Nf1 {[%emt 0:01:14]} c4 {[%emt 0:00:21]} 12. Bc2 {[%emt 0:00:19]} h6 {[%emt 0:00:17] [#] Inhibits Ng5.} 13. N3d2 $146 {[%emt 0:03:56]} ({Predecessor:} 13. Ng3 O-O-O 14. h3 Kb8 15. Nh2 g6 16. Qf3 Rdf8 17. Ng4 h5 18. Nh2 {1-0 (37) Kononov,V (2029)-Shalagin,V (2033) Zelenograd 2019}) 13... O-O-O {[%emt 0:02:25]} 14. b3 {[%emt 0:00:23]} Na5 {[%emt 0:00:11]} 15. bxc4 {[%emt 0:00:19]} dxc4 {[%emt 0:00:09]} 16. Qe2 {[%emt 0:01:16]} Kb8 {[%emt 0:00:33]} 17. Rb1 {[%emt 0:01:40]} Rc8 {[%emt 0:00:10]} (17... Qc6 18. Be4 Qc8 19. Bxb7 Qxb7 20. Nxc4 Nxc4 21. Qxc4 $16) 18. Be4 {[%emt 0:01:35]} g5 {[%emt 0:00:46]} 19. Bxb7 {[%emt 0:01:41]} Qxb7 {[%emt 0:00:45]} 20. Qh5 {[%emt 0:05:32]} Rh7 {[%emt 0:00:41]} 21. Ng3 {[%emt 0:01:59]} Nf8 {[%emt 0:00:18]} 22. Nge4 {[%emt 0:02:32]} Ng6 {[%emt 0:01:02]} 23. g3 {[%emt 0:02:30] Inhibits Nf4.} Rg8 {[%emt 0:02:33]} 24. Qf3 {[%emt 0:02:02]} h5 {[%emt 0:00:55]} 25. Nf6 {[%emt 0:00:29] White is more active.} Bxf6 {[%emt 0:00:13]} 26. Qxb7+ {[%emt 0:00:11]} ({Don't take} 26. exf6 Qd7 $14) 26... Kxb7 {[%emt 0:00:13]} (26... Nxb7 $142 27. exf6 Rd8) 27. exf6 $16 {[%emt 0:00:06]} h4 {[%emt 0:01:22]} (27... g4 $16 28. Ne4 Nf8) 28. Ne4 $18 {[%emt 0:02:00]} hxg3 {[%emt 0:00:18]} 29. fxg3 {[%emt 0:01:04]} ({Don't do} 29. hxg3 $6 Rgh8 30. Bxg5 Kc6 $16) 29... Nh8 {[%emt 0:11:43]} 30. Bxg5 {[%emt 0:01:11]} Rh5 {[%emt 0:02:01]} (30... Kc6 {might work better.} 31. Rb4 Ng6) 31. h4 {[%emt 0:00:12]} Kc6 {[%emt 0:00:31]} 32. a4 {[%emt 0:01:26]} Ng6 {[%emt 0:00:24]} 33. Kf2 {[%emt 0:08:37]} Rhh8 {[%emt 0:02:58]} 34. Nd2 {[%emt 0:04:23] Against Nb3} Rc8 {[%emt 0:01:40]} 35. Nf3 {[%emt 0:00:16]} Nb7 {[%emt 0:04:02]} 36. g4 {[%emt 0:06:52] [#] Black must now prevent h5.} Nd6 {[%emt 0:01:21]} 37. h5 {[%emt 0:00:26]} Nf8 {[%emt 0:00:15]} 38. Bf4 {[%emt 0:01:13]} Nd7 {[%emt 0:03:38]} 39. Ne5+ {[%emt 0:00:18]} Nxe5 {[%emt 0:01:26]} 40. dxe5 {[%emt 0:04:48]} ({Not} 40. Bxe5 Rh6 41. Ke3 Rg8 $18) 40... Nb7 {[%emt 0:00:23]} 41. Be3 {[%emt 0:30:19]} Rcg8 {[%emt 0:31:56]} 42. Kf3 {[%emt 0:01:07]} Rd8 {[%emt 0:04:55]} 43. Rbd1 {[%emt 0:00:16]} Rd5 {[%emt 0:06:03]} 44. Rxd5 {[%emt 0:01:06]} exd5 {[%emt 0:00:10][%mdl 4096] Endgame KRB-KRN} 45. Kf4 {[%emt 0:00:42]} Kd7 {[%emt 0:00:55]} 46. Kf5 {[%emt 0:00:09]} Nd8 {[%emt 0:00:27]} 47. Rh1 {[%emt 0:00:23]} Ne6 {[%emt 0:01:29]} 48. g5 {[%emt 0:01:08]} Nf8 {[%emt 0:08:32]} 49. Bc1 {[%emt 0:00:14]} Ke8 {[%emt 0:08:07]} 50. Ba3 {[%emt 0:00:27] [#] And now Bxf8 would win.} Ng6 {[%emt 0:06:43]} 51. e6 {[%emt 0:01:10]} fxe6+ {[%emt 0:04:55]} 52. Kxg6 {[%emt 0:00:55] KRB-KR} Rg8+ {[%emt 0:00:18]} 53. Kh6 {[%emt 0:00:53]} Kf7 {[%emt 0:00:19]} 54. g6+ {[%emt 0:00:01]} Kxf6 {[%emt 0:00:18]} 55. Rf1+ {[%emt 0:00:05]} Ke5 {[%emt 0:00:40]} 56. Kh7 {[%emt 0:00:06]} Rc8 {[%emt 0:00:28]} 57. g7 {[%emt 0:00:07] White threatens h6 and mate.} Rc7 {[%emt 0:00:18]} 58. Kg6 {[%emt 0:00:02] White mates.} Rxg7+ {[%emt 0:00:15]} 59. Kxg7 {[%emt 0:00:03]} d4 {[%emt 0:00:02]} 60. Re1+ {[%emt 0:00:36]} Kd5 {[%emt 0:00:04] Weighted Error Value: White=0.13 (very precise) /Black=0.68} 1-0